[Event "*** SCC Grand Prix: Titled Tuesday Blitz"]
[Site "Chess.com"]
[Date "2020.08.11"]
[Round "6"]
[White "pedromartinez91"]
[Black "googlegoom"]
[Result "1-0"]
[WhiteElo "2570"]
[BlackElo "2396"]
[TimeControl "180+1"]
[EndTime "11:07:35 PDT"]
[Termination "pedromartinez91 won by resignation"]

1. d4 {[%clk 0:03:00.9]} 1... d5 {[%clk 0:02:59.2]} 2. c4 {[%clk 0:03:00.8]}
2... c6 {[%clk 0:02:59.7]} 3. Nf3 {[%clk 0:02:56.5]} 3... Nf6 {[%clk 0:03:00]}
4. Nc3 {[%clk 0:02:56.5]} 4... e6 {[%clk 0:02:59.2]} 5. Bg5 {[%clk 0:02:57.1]}
5... Be7 {[%clk 0:02:51.9]} 6. e3 {[%clk 0:02:54.6]} 6... a6 {[%clk 0:02:49.6]}
7. c5 {[%clk 0:02:52.5]} 7... Nbd7 {[%clk 0:02:47.5]} 8. Bd3 {[%clk 0:02:47.5]}
8... e5 {[%clk 0:02:39.6]} 9. Nxe5 {[%clk 0:02:43.8]} 9... Nxe5 {[%clk
0:02:38.9]} 10. dxe5 {[%clk 0:02:44.7]} 10... Nd7 {[%clk 0:02:39]} 11. Bxe7
{[%clk 0:02:42.8]} 11... Qxe7 {[%clk 0:02:38.8]} 12. b4 {[%clk 0:02:34.5]} 12...
Nxe5 {[%clk 0:02:34.9]} 13. Ne2 {[%clk 0:02:29.4]} 13... Bg4 {[%clk 0:02:28.9]}
14. f3 {[%clk 0:02:27.8]} 14... Bh5 {[%clk 0:02:25.9]} 15. Nd4 {[%clk
0:02:11.3]} 15... Nxd3+ {[%clk 0:01:48.3]} 16. Qxd3 {[%clk 0:02:12.2]} 16... Bg6
{[%clk 0:01:48.8]} 17. Qd2 {[%clk 0:02:10.7]} 17... O-O {[%clk 0:01:45.7]} 18.
h4 {[%clk 0:02:10.1]} 18... h6 {[%clk 0:01:43.5]} 19. Kf2 {[%clk 0:02:09.6]}
19... Rfe8 {[%clk 0:01:41.5]} 20. g3 {[%clk 0:01:54.5]} 20... Qf6 {[%clk
0:01:38.6]} 21. Rhe1 {[%clk 0:01:49.2]} 21... Re7 {[%clk 0:01:36.6]} 22. a4
{[%clk 0:01:45.4]} 22... Kh8 {[%clk 0:01:07.8]} 23. b5 {[%clk 0:01:44.9]} 23...
axb5 {[%clk 0:01:07.2]} 24. axb5 {[%clk 0:01:45.8]} 24... Rxa1 {[%clk
0:00:28.3]} 25. Rxa1 {[%clk 0:01:46.7]} 25... Bf5 {[%clk 0:00:28.8]} 26. Ra2
{[%clk 0:01:31.9]} 26... g5 {[%clk 0:00:28.3]} 27. hxg5 {[%clk 0:01:27.9]} 27...
hxg5 {[%clk 0:00:28.5]} 28. bxc6 {[%clk 0:01:16.6]} 28... bxc6 {[%clk 0:00:28]}
29. Ra6 {[%clk 0:01:17.1]} 29... Bd7 {[%clk 0:00:27.6]} 30. Kg1 {[%clk
0:00:51.2]} 30... Kg7 {[%clk 0:00:26.8]} 31. Ra8 {[%clk 0:00:50.4]} 31... Re8
{[%clk 0:00:25.8]} 32. Rxe8 {[%clk 0:00:49.9]} 32... Bxe8 {[%clk 0:00:26.7]} 33.
Qc3 {[%clk 0:00:45.3]} 33... Bd7 {[%clk 0:00:26.1]} 34. Ne2 {[%clk 0:00:45]}
34... Qxc3 {[%clk 0:00:20.9]} 35. Nxc3 {[%clk 0:00:45.9]} 35... Kf6 {[%clk
0:00:20.3]} 36. Ne2 {[%clk 0:00:45.8]} 36... Ke5 {[%clk 0:00:19.1]} 37. g4
{[%clk 0:00:39.7]} 37... f5 {[%clk 0:00:17.6]} 38. gxf5 {[%clk 0:00:39.8]} 38...
Bxf5 {[%clk 0:00:16.8]} 39. Nd4 {[%clk 0:00:40.4]} 39... Bd7 {[%clk 0:00:16.9]}
40. Kf2 {[%clk 0:00:40.5]} 40... Kf6 {[%clk 0:00:14.9]} 41. Kg3 {[%clk 0:00:40]}
41... Ke5 {[%clk 0:00:15]} 42. Kf2 {[%clk 0:00:37.7]} 42... Be8 {[%clk
0:00:15.1]} 43. Ke2 {[%clk 0:00:37.2]} 43... Bd7 {[%clk 0:00:14.5]} 44. Kd3
{[%clk 0:00:37.7]} 44... Kf6 {[%clk 0:00:11.6]} 45. Kc3 {[%clk 0:00:38.1]} 45...
g4 {[%clk 0:00:06.7]} 46. fxg4 {[%clk 0:00:37.4]} 46... Kg5 {[%clk 0:00:07.6]}
47. Nf3+ {[%clk 0:00:35.1]} 47... Kf6 {[%clk 0:00:04.1]} 48. g5+ {[%clk
0:00:34.2]} 48... Kf5 {[%clk 0:00:04.1]} 49. Kd4 {[%clk 0:00:33.8]} 49... Be8
{[%clk 0:00:04.2]} 50. g6 {[%clk 0:00:31.1]} 50... Bxg6 {[%clk 0:00:03.6]} 51.
Nh4+ {[%clk 0:00:31.1]} 51... Kf6 {[%clk 0:00:03]} 52. Nxg6 {[%clk 0:00:31.7]}
52... Kxg6 {[%clk 0:00:03.9]} 53. Ke5 {[%clk 0:00:31.3]} 53... Kg5 {[%clk
0:00:04.4]} 54. Kd6 {[%clk 0:00:31.7]} 54... Kf5 {[%clk 0:00:05.3]} 55. Kxc6
{[%clk 0:00:32]} 55... Ke4 {[%clk 0:00:06.2]} 56. Kd6 {[%clk 0:00:32.2]} 56...
d4 {[%clk 0:00:05.1]} 57. exd4 {[%clk 0:00:32]} 1-0

[Event "*** SCC Grand Prix: Titled Tuesday Blitz"]
[Site "Chess.com"]
[Date "2020.08.11"]
[Round "6"]
[White "gurelediz"]
[Black "Tekushka"]
[Result "1/2-1/2"]
[WhiteElo "2544"]
[BlackElo "2358"]
[TimeControl "180+1"]
[EndTime "11:07:35 PDT"]
[Termination "Game drawn by repetition"]

1. d4 {[%clk 0:03:00.9]} 1... Nf6 {[%clk 0:02:59.3]} 2. c4 {[%clk 0:03:00.1]}
2... e6 {[%clk 0:02:59.5]} 3. Nf3 {[%clk 0:02:59.6]} 3... b6 {[%clk 0:02:58.7]}
4. Nc3 {[%clk 0:02:59.2]} 4... Bb4 {[%clk 0:02:55.1]} 5. Bd2 {[%clk 0:02:57.1]}
5... Bb7 {[%clk 0:02:52.7]} 6. a3 {[%clk 0:02:54.4]} 6... Bxc3 {[%clk
0:02:48.2]} 7. Bxc3 {[%clk 0:02:55.3]} 7... Ne4 {[%clk 0:02:47.2]} 8. Qc2 {[%clk
0:02:54.2]} 8... O-O {[%clk 0:02:34.3]} 9. e3 {[%clk 0:02:47.8]} 9... Nxc3
{[%clk 0:02:31]} 10. Qxc3 {[%clk 0:02:45.9]} 10... d6 {[%clk 0:02:11.9]} 11. Be2
{[%clk 0:02:43.9]} 11... Nd7 {[%clk 0:02:11.9]} 12. O-O {[%clk 0:02:42.6]} 12...
Nf6 {[%clk 0:02:11.7]} 13. b4 {[%clk 0:02:41.7]} 13... Ne4 {[%clk 0:02:07.8]}
14. Qc2 {[%clk 0:02:41.9]} 14... Qe7 {[%clk 0:02:08]} 15. h3 {[%clk 0:02:37.9]}
15... c5 {[%clk 0:02:01]} 16. Rfd1 {[%clk 0:02:27.4]} 16... Rfd8 {[%clk
0:01:55.7]} 17. Bd3 {[%clk 0:02:22.4]} 17... f5 {[%clk 0:01:52.2]} 18. Rac1
{[%clk 0:02:01.7]} 18... Qf6 {[%clk 0:01:49.6]} 19. dxc5 {[%clk 0:01:44.2]}
19... bxc5 {[%clk 0:01:48.7]} 20. b5 {[%clk 0:01:36.9]} 20... Rf8 {[%clk
0:01:29.1]} 21. a4 {[%clk 0:01:25.2]} 21... Rad8 {[%clk 0:01:21.5]} 22. a5
{[%clk 0:01:22.9]} 22... Ng5 {[%clk 0:01:18]} 23. Nxg5 {[%clk 0:01:11.8]} 23...
Qxg5 {[%clk 0:01:17.8]} 24. Bf1 {[%clk 0:01:12.2]} 24... f4 {[%clk 0:01:17]} 25.
exf4 {[%clk 0:01:07.4]} 25... Rxf4 {[%clk 0:01:16.9]} 26. a6 {[%clk 0:01:07.2]}
26... Ba8 {[%clk 0:01:15.2]} 27. Re1 {[%clk 0:01:05.4]} 27... e5 {[%clk
0:01:12.9]} 28. Qd2 {[%clk 0:00:57.5]} 28... Qf6 {[%clk 0:01:02.9]} 29. g3
{[%clk 0:00:48]} 29... Rd4 {[%clk 0:01:01.7]} 30. Qe2 {[%clk 0:00:39.5]} 30...
Re4 {[%clk 0:00:36.3]} 31. Qd3 {[%clk 0:00:23.5]} 31... Rd4 {[%clk 0:00:25.4]}
32. Qe3 {[%clk 0:00:19.5]} 32... Re4 {[%clk 0:00:21.2]} 33. Qxe4 {[%clk
0:00:10.9]} 33... Bxe4 {[%clk 0:00:20.2]} 34. Rxe4 {[%clk 0:00:11.8]} 34... Rf8
{[%clk 0:00:18.6]} 35. Rc2 {[%clk 0:00:11.6]} 35... Qf3 {[%clk 0:00:17.7]} 36.
Re3 {[%clk 0:00:09.1]} 36... Qd1 {[%clk 0:00:16.6]} 37. Rcc3 {[%clk 0:00:07.8]}
37... Qd2 {[%clk 0:00:15.3]} 38. Rf3 {[%clk 0:00:07.6]} 38... Rxf3 {[%clk
0:00:13.3]} 39. Rxf3 {[%clk 0:00:08.5]} 39... e4 {[%clk 0:00:11.7]} 40. Re3
{[%clk 0:00:08.7]} 40... Qd4 {[%clk 0:00:11.1]} 41. b6 {[%clk 0:00:04.6]} 41...
axb6 {[%clk 0:00:10.6]} 42. Ra3 {[%clk 0:00:04.8]} 42... Qb2 {[%clk 0:00:09.3]}
43. Ra4 {[%clk 0:00:04.8]} 43... Qb3 {[%clk 0:00:09.1]} 44. Ra1 {[%clk
0:00:04.9]} 44... Qb2 {[%clk 0:00:09.1]} 45. Ra4 {[%clk 0:00:04.5]} 45... Qb3
{[%clk 0:00:09.3]} 46. Ra1 {[%clk 0:00:04.6]} 46... Qb2 {[%clk 0:00:09.7]} 47.
Ra4 {[%clk 0:00:04.8]} 1/2-1/2

[Event "*** SCC Grand Prix: Titled Tuesday Blitz"]
[Site "Chess.com"]
[Date "2020.08.11"]
[Round "6"]
[White "Sanan_Sjugirov"]
[Black "VladimirBelous"]
[Result "1/2-1/2"]
[WhiteElo "2849"]
[BlackElo "2757"]
[TimeControl "180+1"]
[EndTime "11:07:36 PDT"]
[Termination "Game drawn by agreement"]

1. e4 {[%clk 0:03:00.9]} 1... c5 {[%clk 0:03:00.1]} 2. Nf3 {[%clk 0:03:01]} 2...
Nc6 {[%clk 0:03:00.2]} 3. d4 {[%clk 0:03:01.1]} 3... cxd4 {[%clk 0:03:00.3]} 4.
Nxd4 {[%clk 0:03:02]} 4... e5 {[%clk 0:03:00]} 5. Nb3 {[%clk 0:03:02.2]} 5...
Nf6 {[%clk 0:02:59.8]} 6. Bg5 {[%clk 0:03:02.1]} 6... Bb4+ {[%clk 0:02:56.8]} 7.
c3 {[%clk 0:03:00.9]} 7... Be7 {[%clk 0:02:56.8]} 8. Bxf6 {[%clk 0:03:00.1]}
8... Bxf6 {[%clk 0:02:56.9]} 9. Na3 {[%clk 0:02:54.5]} 9... Be7 {[%clk
0:02:47.7]} 10. Nc4 {[%clk 0:02:52.3]} 10... O-O {[%clk 0:02:46.7]} 11. Ne3
{[%clk 0:02:50.5]} 11... Bg5 {[%clk 0:02:43.2]} 12. Nd5 {[%clk 0:02:49.1]} 12...
d6 {[%clk 0:02:37.5]} 13. h4 {[%clk 0:02:48.7]} 13... Bh6 {[%clk 0:02:35]} 14.
g3 {[%clk 0:02:24.4]} 14... f5 {[%clk 0:02:24.4]} 15. exf5 {[%clk 0:02:25.3]}
15... Bxf5 {[%clk 0:02:24.3]} 16. Bg2 {[%clk 0:02:23.2]} 16... Qd7 {[%clk
0:02:10.7]} 17. O-O {[%clk 0:02:22.7]} 17... Rae8 {[%clk 0:02:10]} 18. Qe2
{[%clk 0:02:16.3]} 18... Kh8 {[%clk 0:02:05.8]} 19. Ne3 {[%clk 0:02:04]} 19...
e4 {[%clk 0:01:42]} 20. Nxf5 {[%clk 0:01:38.8]} 20... Qxf5 {[%clk 0:01:40.5]}
21. Rad1 {[%clk 0:01:38.8]} 21... d5 {[%clk 0:01:34.9]} 22. Nd4 {[%clk
0:01:34.7]} 22... Qg6 {[%clk 0:01:29.7]} 23. Nxc6 {[%clk 0:00:59.9]} 23... bxc6
{[%clk 0:01:28.7]} 24. Kh2 {[%clk 0:01:00.4]} 24... Re5 {[%clk 0:01:08.5]} 25.
f4 {[%clk 0:00:42.9]} 25... Ree8 {[%clk 0:01:05.4]} 26. c4 {[%clk 0:00:40.5]}
26... Rd8 {[%clk 0:00:59.1]} 27. cxd5 {[%clk 0:00:39.2]} 27... cxd5 {[%clk
0:01:00]} 28. Rd4 {[%clk 0:00:26.4]} 28... Qf5 {[%clk 0:00:47.1]} 29. Qd2 {[%clk
0:00:14.8]} 29... Rfe8 {[%clk 0:00:28.7]} 30. Qe3 {[%clk 0:00:12.4]} 30... g6
{[%clk 0:00:28.3]} 31. Bh3 {[%clk 0:00:05.1]} 31... Qf8 {[%clk 0:00:27.9]} 32.
Rfd1 {[%clk 0:00:04.4]} 32... Bg7 {[%clk 0:00:28.4]} 33. Rxd5 {[%clk 0:00:04.4]}
33... Rxd5 {[%clk 0:00:23.3]} 34. Rxd5 {[%clk 0:00:05.3]} 34... Bxb2 {[%clk
0:00:23.4]} 35. Bg2 {[%clk 0:00:05.2]} 35... Bg7 {[%clk 0:00:21.9]} 36. Bxe4
{[%clk 0:00:03.2]} 36... Qb4 {[%clk 0:00:21]} 37. Qd3 {[%clk 0:00:02.8]} 37...
Qb2+ {[%clk 0:00:08.2]} 38. Bg2 {[%clk 0:00:02.8]} 38... Qxa2 {[%clk 0:00:08.3]}
39. Rd8 {[%clk 0:00:03]} 39... Rxd8 {[%clk 0:00:06.4]} 40. Qxd8+ {[%clk
0:00:03.9]} 40... Qg8 {[%clk 0:00:06.7]} 41. Qxg8+ {[%clk 0:00:03.5]} 41... Kxg8
{[%clk 0:00:06.8]} 42. Bd5+ {[%clk 0:00:04.4]} 42... Kf8 {[%clk 0:00:07.2]} 43.
Kg2 {[%clk 0:00:05.2]} 43... Ke7 {[%clk 0:00:06.8]} 44. Kf3 {[%clk 0:00:05.6]}
44... h6 {[%clk 0:00:07.3]} 45. Be4 {[%clk 0:00:05.5]} 45... Kf6 {[%clk
0:00:07.3]} 46. Bc2 {[%clk 0:00:05.1]} 46... g5 {[%clk 0:00:07.8]} 47. hxg5+
{[%clk 0:00:05.3]} 47... hxg5 {[%clk 0:00:08.2]} 48. fxg5+ {[%clk 0:00:06.2]}
48... Kxg5 {[%clk 0:00:09.1]} 49. g4 {[%clk 0:00:06.9]} 49... Be5 {[%clk
0:00:09.1]} 50. Ba4 {[%clk 0:00:07.8]} 50... a5 {[%clk 0:00:09.5]} 51. Bc2
{[%clk 0:00:07.6]} 1/2-1/2

[Event "*** SCC Grand Prix: Titled Tuesday Blitz"]
[Site "Chess.com"]
[Date "2020.08.11"]
[Round "6"]
[White "Dedic8"]
[Black "PavelShkapenko"]
[Result "1/2-1/2"]
[WhiteElo "2821"]
[BlackElo "2661"]
[TimeControl "180+1"]
[EndTime "11:07:37 PDT"]
[Termination "Game drawn by repetition"]

1. e4 {[%clk 0:03:00.9]} 1... e5 {[%clk 0:02:55.4]} 2. Nf3 {[%clk 0:03:01.1]}
2... Nc6 {[%clk 0:02:56]} 3. Bb5 {[%clk 0:03:01.7]} 3... Bc5 {[%clk 0:02:56.3]}
4. O-O {[%clk 0:03:00.9]} 4... d6 {[%clk 0:02:56.8]} 5. c3 {[%clk 0:03:00.3]}
5... Bd7 {[%clk 0:02:57.2]} 6. d4 {[%clk 0:02:59.9]} 6... Bb6 {[%clk 0:02:57.9]}
7. Re1 {[%clk 0:02:57.3]} 7... Nge7 {[%clk 0:02:57.2]} 8. Be3 {[%clk 0:02:53.3]}
8... O-O {[%clk 0:02:53.3]} 9. Nbd2 {[%clk 0:02:53.6]} 9... exd4 {[%clk
0:02:53.2]} 10. cxd4 {[%clk 0:02:52.2]} 10... d5 {[%clk 0:02:53.8]} 11. Rc1
{[%clk 0:02:39]} 11... dxe4 {[%clk 0:02:31.7]} 12. Nxe4 {[%clk 0:02:39.9]} 12...
Nd5 {[%clk 0:02:31.8]} 13. Nc5 {[%clk 0:02:36.5]} 13... Bxc5 {[%clk 0:02:29.2]}
14. Rxc5 {[%clk 0:02:29.7]} 14... Nce7 {[%clk 0:02:28.6]} 15. Bd3 {[%clk
0:02:25.9]} 15... Bf5 {[%clk 0:02:22.5]} 16. Bg5 {[%clk 0:02:17]} 16... f6
{[%clk 0:02:13.8]} 17. Bh4 {[%clk 0:02:16]} 17... Bxd3 {[%clk 0:02:10.9]} 18.
Qxd3 {[%clk 0:02:16.9]} 18... c6 {[%clk 0:02:10.7]} 19. Bg3 {[%clk 0:02:12.4]}
19... Qd7 {[%clk 0:02:08.6]} 20. Rcc1 {[%clk 0:02:03.3]} 20... Rae8 {[%clk
0:02:08.1]} 21. Nd2 {[%clk 0:02:03.1]} 21... Ng6 {[%clk 0:02:01]} 22. Ne4 {[%clk
0:02:01.5]} 22... f5 {[%clk 0:01:40.6]} 23. Nc5 {[%clk 0:01:55.1]} 23... Qf7
{[%clk 0:01:31.3]} 24. Be5 {[%clk 0:01:42.5]} 24... Re7 {[%clk 0:01:17.1]} 25.
Qf3 {[%clk 0:01:12.9]} 25... Rfe8 {[%clk 0:01:12.1]} 26. Nd3 {[%clk 0:01:12.9]}
26... a5 {[%clk 0:01:04.7]} 27. Re2 {[%clk 0:01:12.7]} 27... Nb4 {[%clk
0:01:04]} 28. Nxb4 {[%clk 0:01:10]} 28... axb4 {[%clk 0:01:04.4]} 29. Rce1
{[%clk 0:01:09.4]} 29... f4 {[%clk 0:00:53.6]} 30. b3 {[%clk 0:01:06.3]} 30...
Qd5 {[%clk 0:00:50.6]} 31. Qxd5+ {[%clk 0:00:53]} 31... cxd5 {[%clk 0:00:50.8]}
32. f3 {[%clk 0:00:53.9]} 32... Kf7 {[%clk 0:00:49.6]} 33. Kf2 {[%clk
0:00:48.7]} 33... Nxe5 {[%clk 0:00:49.8]} 34. dxe5 {[%clk 0:00:48.8]} 34... Rc8
{[%clk 0:00:47.3]} 35. Rd2 {[%clk 0:00:48.5]} 35... Ke6 {[%clk 0:00:47.1]} 36.
Ree2 {[%clk 0:00:48]} 36... Rec7 {[%clk 0:00:29.8]} 37. Rd4 {[%clk 0:00:30.1]}
37... Rc2 {[%clk 0:00:28.8]} 38. Rxb4 {[%clk 0:00:30.6]} 38... Rxe2+ {[%clk
0:00:27.7]} 39. Kxe2 {[%clk 0:00:31.5]} 39... Rc2+ {[%clk 0:00:26.8]} 40. Kf1
{[%clk 0:00:27.3]} 40... Rxa2 {[%clk 0:00:22.8]} 41. Rxf4 {[%clk 0:00:24.8]}
41... Kxe5 {[%clk 0:00:17.7]} 42. Rf7 {[%clk 0:00:24.8]} 42... Kd4 {[%clk
0:00:17.1]} 43. Rxg7 {[%clk 0:00:22.9]} 43... b5 {[%clk 0:00:17.2]} 44. Rxh7
{[%clk 0:00:21.2]} 44... Kc3 {[%clk 0:00:17.5]} 45. Rc7+ {[%clk 0:00:21.4]}
45... Kxb3 {[%clk 0:00:17.5]} 46. h4 {[%clk 0:00:21.9]} 46... d4 {[%clk
0:00:18]} 47. h5 {[%clk 0:00:21.5]} 47... d3 {[%clk 0:00:17.5]} 48. Rd7 {[%clk
0:00:09.6]} 48... Kc2 {[%clk 0:00:16.2]} 49. Rc7+ {[%clk 0:00:06.6]} 49... Kb3
{[%clk 0:00:15.9]} 50. Rd7 {[%clk 0:00:06.7]} 50... Kc2 {[%clk 0:00:16.1]} 51.
Rc7+ {[%clk 0:00:07]} 51... Kb3 {[%clk 0:00:16.4]} 1/2-1/2

[Event "*** SCC Grand Prix: Titled Tuesday Blitz"]
[Site "Chess.com"]
[Date "2020.08.11"]
[Round "6"]
[White "onnoelgersma"]
[Black "viktorskliarov"]
[Result "0-1"]
[WhiteElo "2423"]
[BlackElo "2583"]
[TimeControl "180+1"]
[EndTime "11:07:37 PDT"]
[Termination "viktorskliarov won by resignation"]

1. e4 {[%clk 0:02:59.2]} 1... c5 {[%clk 0:02:59.2]} 2. Nf3 {[%clk 0:02:58.4]}
2... Nc6 {[%clk 0:02:59.4]} 3. Bb5 {[%clk 0:02:58.1]} 3... e6 {[%clk 0:02:59.2]}
4. O-O {[%clk 0:02:55.4]} 4... Nge7 {[%clk 0:02:58.8]} 5. Re1 {[%clk 0:02:49.3]}
5... Nd4 {[%clk 0:02:58.9]} 6. Nxd4 {[%clk 0:02:41.9]} 6... cxd4 {[%clk
0:02:58.4]} 7. d3 {[%clk 0:02:42]} 7... a6 {[%clk 0:02:56.6]} 8. Ba4 {[%clk
0:02:42]} 8... b5 {[%clk 0:02:56.9]} 9. Bb3 {[%clk 0:02:42.6]} 9... Ng6 {[%clk
0:02:53]} 10. Nd2 {[%clk 0:02:39.9]} 10... Be7 {[%clk 0:02:45.2]} 11. Nf3 {[%clk
0:02:35.6]} 11... Qb6 {[%clk 0:02:43.4]} 12. a4 {[%clk 0:02:33.2]} 12... Bb7
{[%clk 0:02:33.7]} 13. axb5 {[%clk 0:02:19.2]} 13... axb5 {[%clk 0:02:32.3]} 14.
Rxa8+ {[%clk 0:02:20.1]} 14... Bxa8 {[%clk 0:02:32]} 15. Bd2 {[%clk 0:02:15.3]}
15... O-O {[%clk 0:02:29.8]} 16. Qe2 {[%clk 0:02:15.8]} 16... f5 {[%clk
0:02:26.5]} 17. e5 {[%clk 0:02:03.6]} 17... Qc6 {[%clk 0:02:13.4]} 18. Ra1
{[%clk 0:01:49.2]} 18... Nh4 {[%clk 0:01:39.1]} 19. Nxh4 {[%clk 0:01:39.1]}
19... Bxh4 {[%clk 0:01:40]} 20. f3 {[%clk 0:01:39.1]} 20... Be7 {[%clk 0:01:39]}
21. Qf2 {[%clk 0:01:26.2]} 21... g5 {[%clk 0:01:34.4]} 22. Bxg5 {[%clk
0:00:18.4]} 22... Bxg5 {[%clk 0:01:30.9]} 23. Qg3 {[%clk 0:00:18.8]} 23... h6
{[%clk 0:01:06.8]} 24. h4 {[%clk 0:00:18.7]} 24... Kf7 {[%clk 0:00:54.8]} 25.
hxg5 {[%clk 0:00:18.5]} 25... Rg8 {[%clk 0:00:55.2]} 26. Qf4 {[%clk 0:00:13.4]}
26... Rxg5 {[%clk 0:00:52.8]} 27. Kf2 {[%clk 0:00:13.5]} 27... Kg6 {[%clk
0:00:43.5]} 28. Rh1 {[%clk 0:00:12.4]} 28... Qc5 {[%clk 0:00:34.1]} 29. Qh4
{[%clk 0:00:10.2]} 29... h5 {[%clk 0:00:30.8]} 30. Qf4 {[%clk 0:00:10.6]} 30...
Bd5 {[%clk 0:00:29]} 31. Rc1 {[%clk 0:00:05.2]} 31... Bxb3 {[%clk 0:00:17.4]}
32. cxb3 {[%clk 0:00:06.1]} 32... Qb4 {[%clk 0:00:18]} 33. Rc2 {[%clk
0:00:05.4]} 33... Qxb3 {[%clk 0:00:17.6]} 34. Qd2 {[%clk 0:00:06.1]} 34... Qd5
{[%clk 0:00:16.7]} 35. Rc7 {[%clk 0:00:03.6]} 35... Qxe5 {[%clk 0:00:16.1]} 36.
Rxd7 {[%clk 0:00:04.1]} 36... Qe3+ {[%clk 0:00:13.4]} 37. Qxe3 {[%clk
0:00:04.1]} 37... dxe3+ {[%clk 0:00:14.1]} 38. Kxe3 {[%clk 0:00:05]} 38... Rxg2
{[%clk 0:00:14.5]} 39. Re7 {[%clk 0:00:05.3]} 39... Kf6 {[%clk 0:00:14.2]} 40.
Rh7 {[%clk 0:00:05.4]} 40... Ke5 {[%clk 0:00:12.9]} 41. Rxh5 {[%clk 0:00:05.4]}
41... Rxb2 {[%clk 0:00:12.7]} 42. f4+ {[%clk 0:00:05.2]} 42... Kd5 {[%clk
0:00:12.7]} 43. Rh7 {[%clk 0:00:05.7]} 43... b4 {[%clk 0:00:12.7]} 44. Rd7+
{[%clk 0:00:05.8]} 44... Kc6 {[%clk 0:00:12.8]} 45. Rc7+ {[%clk 0:00:06.5]}
45... Kxc7 {[%clk 0:00:12.6]} 0-1

[Event "*** SCC Grand Prix: Titled Tuesday Blitz"]
[Site "Chess.com"]
[Date "2020.08.11"]
[Round "6"]
[White "Matols"]
[Black "Caterpiller35"]
[Result "0-1"]
[WhiteElo "2212"]
[BlackElo "2409"]
[TimeControl "180+1"]
[EndTime "11:07:37 PDT"]
[Termination "Caterpiller35 won on time"]

1. d4 {[%clk 0:03:00.9]} 1... Nf6 {[%clk 0:02:18.8]} 2. c4 {[%clk 0:03:00.5]}
2... e6 {[%clk 0:02:18.8]} 3. g3 {[%clk 0:02:59.9]} 3... d5 {[%clk 0:02:18.7]}
4. Nf3 {[%clk 0:02:59.6]} 4... Be7 {[%clk 0:02:18.9]} 5. Bg2 {[%clk 0:02:59.3]}
5... O-O {[%clk 0:02:19.8]} 6. O-O {[%clk 0:02:59.4]} 6... dxc4 {[%clk
0:02:20.7]} 7. Qc2 {[%clk 0:02:59.4]} 7... b6 {[%clk 0:02:20.5]} 8. Ne5 {[%clk
0:02:51.4]} 8... Qxd4 {[%clk 0:02:20.5]} 9. Bxa8 {[%clk 0:02:45.2]} 9... Qxe5
{[%clk 0:02:20.1]} 10. Bg2 {[%clk 0:02:42.1]} 10... Ba6 {[%clk 0:02:09.3]} 11.
Bf4 {[%clk 0:02:39.7]} 11... Qh5 {[%clk 0:02:08.3]} 12. h3 {[%clk 0:02:23.5]}
12... Nbd7 {[%clk 0:01:59.2]} 13. Na3 {[%clk 0:02:16.9]} 13... b5 {[%clk
0:01:54.4]} 14. Bxc7 {[%clk 0:02:12.9]} 14... Rc8 {[%clk 0:01:52.1]} 15. Bf4
{[%clk 0:02:05.2]} 15... Nd5 {[%clk 0:01:46.8]} 16. Bd2 {[%clk 0:01:59.9]} 16...
c3 {[%clk 0:01:43.6]} 17. Be1 {[%clk 0:01:34.3]} 17... b4 {[%clk 0:01:33.2]} 18.
Rd1 {[%clk 0:00:28.5]} 18... cxb2 {[%clk 0:01:11.7]} 19. Qxb2 {[%clk 0:00:27.8]}
19... bxa3 {[%clk 0:01:11.5]} 20. Qb3 {[%clk 0:00:25.6]} 20... Qxe2 {[%clk
0:01:06.1]} 21. Ba5 {[%clk 0:00:16.8]} 21... Qb2 {[%clk 0:00:54.9]} 22. Rfe1
{[%clk 0:00:16]} 22... Qxb3 {[%clk 0:00:52.4]} 23. axb3 {[%clk 0:00:16.2]} 23...
Bf6 {[%clk 0:00:45.6]} 24. Bxd5 {[%clk 0:00:11.6]} 24... exd5 {[%clk 0:00:46.5]}
25. Rxd5 {[%clk 0:00:11.7]} 25... Nf8 {[%clk 0:00:27.9]} 26. Bb4 {[%clk
0:00:07]} 26... a2 {[%clk 0:00:26.7]} 27. Ra5 {[%clk 0:00:07.2]} 27... a1=Q
{[%clk 0:00:22.6]} 28. Rexa1 {[%clk 0:00:07]} 28... Bxa1 {[%clk 0:00:23.5]} 29.
Rxa6 {[%clk 0:00:07.1]} 29... Bd4 {[%clk 0:00:23.3]} 30. Kg2 {[%clk 0:00:06.5]}
30... Ne6 {[%clk 0:00:22]} 31. Kf3 {[%clk 0:00:06]} 31... Rb8 {[%clk 0:00:20.4]}
32. Bd6 {[%clk 0:00:04.7]} 32... Rxb3+ {[%clk 0:00:19.8]} 33. Ke4 {[%clk
0:00:05]} 33... Bc5 {[%clk 0:00:17.4]} 34. Rc6 {[%clk 0:00:02.4]} 34... Bxd6
{[%clk 0:00:16.1]} 35. Rxd6 {[%clk 0:00:02.6]} 35... a5 {[%clk 0:00:13.5]} 36.
Ra6 {[%clk 0:00:02.4]} 36... Rb4+ {[%clk 0:00:12.2]} 37. Ke5 {[%clk 0:00:01.1]}
37... Rb5+ {[%clk 0:00:07.8]} 38. Kd6 {[%clk 0:00:01]} 38... g6 {[%clk
0:00:07.8]} 0-1